[Event "*** Titled Tuesday Blitz"]
[Site "Chess.com"]
[Date "2018.09.04"]
[Round "6"]
[White "Kimster98"]
[Black "GreatDamnedRedSpot"]
[Result "1-0"]
[WhiteElo "2479"]
[BlackElo "2309"]
[TimeControl "180+2"]
[EndTime "14:55:24 PDT"]
[Termination "Kimster98 won on time"]

1. e4 {[%clk 0:03:01.9]} 1... e6 {[%clk 0:03:00.3]} 2. Qe2 {[%clk 0:03:01.8]}
2... Be7 {[%clk 0:03:00]} 3. g3 {[%clk 0:03:00.9]} 3... d5 {[%clk 0:03:01]} 4.
d3 {[%clk 0:03:02.3]} 4... Nf6 {[%clk 0:03:02.2]} 5. Bg2 {[%clk 0:03:03.1]} 5...
b6 {[%clk 0:03:03.7]} 6. f4 {[%clk 0:03:04.4]} 6... Ba6 {[%clk 0:03:04.5]} 7.
Nd2 {[%clk 0:02:58.8]} 7... Nbd7 {[%clk 0:03:04.4]} 8. e5 {[%clk 0:02:57.1]}
8... Ng8 {[%clk 0:03:04.6]} 9. Ngf3 {[%clk 0:02:58.6]} 9... g6 {[%clk
0:03:00.2]} 10. O-O {[%clk 0:02:56.2]} 10... h5 {[%clk 0:03:01.3]} 11. h3 {[%clk
0:02:51.9]} 11... Nh6 {[%clk 0:02:43.5]} 12. Nd4 {[%clk 0:02:52.6]} 12... Bc5
{[%clk 0:02:40.6]} 13. Nf3 {[%clk 0:02:37.5]} 13... Nf5 {[%clk 0:02:40.2]} 14.
Qf2 {[%clk 0:02:38.7]} 14... Bxd4 {[%clk 0:02:36.2]} 15. Nxd4 {[%clk 0:02:38.8]}
15... Nxd4 {[%clk 0:02:38]} 16. Qxd4 {[%clk 0:02:40.4]} 16... c5 {[%clk
0:02:39.6]} 17. Qf2 {[%clk 0:02:40.2]} 17... c4 {[%clk 0:02:40.3]} 18. dxc4
{[%clk 0:02:34.5]} 18... Bxc4 {[%clk 0:02:40.1]} 19. Rd1 {[%clk 0:02:35.1]}
19... Rc8 {[%clk 0:02:37]} 20. c3 {[%clk 0:02:35.2]} 20... Qc7 {[%clk
0:02:33.8]} 21. Be3 {[%clk 0:02:33.2]} 21... Nc5 {[%clk 0:02:06]} 22. Qc2 {[%clk
0:02:27.2]} 22... Kf8 {[%clk 0:01:55.5]} 23. Rd4 {[%clk 0:02:05.3]} 23... Kg7
{[%clk 0:01:53.8]} 24. b3 {[%clk 0:01:51.6]} 24... Ba6 {[%clk 0:01:50.9]} 25.
Rc1 {[%clk 0:01:52.1]} 25... Nb7 {[%clk 0:01:43.1]} 26. Qf2 {[%clk 0:01:44.3]}
26... Na5 {[%clk 0:01:39.6]} 27. Bf3 {[%clk 0:01:33]} 27... Nc6 {[%clk
0:01:39.5]} 28. Rdd1 {[%clk 0:01:31.9]} 28... Ne7 {[%clk 0:01:40.1]} 29. g4
{[%clk 0:01:30.2]} 29... hxg4 {[%clk 0:01:40.9]} 30. hxg4 {[%clk 0:01:32.1]}
30... Rh7 {[%clk 0:01:30.9]} 31. Bd4 {[%clk 0:01:21]} 31... Rch8 {[%clk
0:01:29.9]} 32. Qg3 {[%clk 0:01:18.1]} 32... Rh3 {[%clk 0:01:21.7]} 33. Qf2
{[%clk 0:01:15.8]} 33... Kf8 {[%clk 0:00:53.9]} 34. Bg2 {[%clk 0:01:14.9]} 34...
Rh2 {[%clk 0:00:52.7]} 35. Qg3 {[%clk 0:01:15.5]} 35... R2h4 {[%clk 0:00:51.1]}
36. Kf2 {[%clk 0:01:13.7]} 36... Nc6 {[%clk 0:00:50.9]} 37. Be3 {[%clk
0:01:13.8]} 37... g5 {[%clk 0:00:49.8]} 38. Rh1 {[%clk 0:01:08.5]} 38... gxf4
{[%clk 0:00:43.2]} 39. Bxf4 {[%clk 0:01:06.9]} 39... Rxh1 {[%clk 0:00:44]} 40.
Rxh1 {[%clk 0:01:08.8]} 40... Rxh1 {[%clk 0:00:44.6]} 41. Bxh1 {[%clk
0:01:10.7]} 41... Ne7 {[%clk 0:00:43.3]} 42. Be3 {[%clk 0:00:46.3]} 42... Qc6
{[%clk 0:00:34.8]} 43. Qh4 {[%clk 0:00:38.9]} 43... Ke8 {[%clk 0:00:32.3]} 44.
Qh8+ {[%clk 0:00:35.7]} 44... Kd7 {[%clk 0:00:31.4]} 45. Qf6 {[%clk 0:00:32.5]}
45... Qb5 {[%clk 0:00:32.6]} 46. Bf3 {[%clk 0:00:10]} 46... Qf1+ {[%clk
0:00:25.1]} 47. Kg3 {[%clk 0:00:11.1]} 47... Qe1+ {[%clk 0:00:14]} 48. Bf2
{[%clk 0:00:11.7]} 48... Qxc3 {[%clk 0:00:14.8]} 49. Qxf7 {[%clk 0:00:08.7]}
49... Qxe5+ {[%clk 0:00:14.1]} 50. Qf4 {[%clk 0:00:10.6]} 50... Qc3 {[%clk
0:00:07.6]} 51. Qe3 {[%clk 0:00:08.2]} 51... Qc2 {[%clk 0:00:06.6]} 52. Qe5
{[%clk 0:00:05.7]} 52... Qxa2 {[%clk 0:00:03.5]} 53. b4 {[%clk 0:00:06]} 53...
Qb3 {[%clk 0:00:03.4]} 54. Be3 {[%clk 0:00:05.4]} 1-0

[Event "*** Titled Tuesday Blitz"]
[Site "Chess.com"]
[Date "2018.09.04"]
[Round "6"]
[White "lavr92"]
[Black "ozates"]
[Result "1-0"]
[WhiteElo "2599"]
[BlackElo "2378"]
[TimeControl "180+2"]
[EndTime "14:55:29 PDT"]
[Termination "lavr92 won by resignation"]

1. d4 {[%clk 0:03:01.9]} 1... d5 {[%clk 0:02:58.1]} 2. c4 {[%clk 0:03:02.8]}
2... c6 {[%clk 0:02:59.2]} 3. Nc3 {[%clk 0:03:03.7]} 3... Nf6 {[%clk 0:02:57.9]}
4. Nf3 {[%clk 0:03:04.4]} 4... e6 {[%clk 0:02:54.9]} 5. Bg5 {[%clk 0:03:04.7]}
5... Nbd7 {[%clk 0:02:54.6]} 6. e3 {[%clk 0:03:00.6]} 6... Qa5 {[%clk
0:02:50.4]} 7. Nd2 {[%clk 0:02:58.9]} 7... Bb4 {[%clk 0:02:51.5]} 8. Qc2 {[%clk
0:02:57.2]} 8... dxc4 {[%clk 0:02:45.6]} 9. Bxf6 {[%clk 0:02:57.3]} 9... Nxf6
{[%clk 0:02:47.5]} 10. Nxc4 {[%clk 0:02:58.5]} 10... Qc7 {[%clk 0:02:48.4]} 11.
Be2 {[%clk 0:02:56.4]} 11... O-O {[%clk 0:02:48.9]} 12. O-O {[%clk 0:02:57.3]}
12... b6 {[%clk 0:02:49.4]} 13. a3 {[%clk 0:02:53.3]} 13... Bd6 {[%clk
0:02:49.2]} 14. f4 {[%clk 0:02:43]} 14... Bb7 {[%clk 0:02:45]} 15. Bf3 {[%clk
0:02:37.6]} 15... Qe7 {[%clk 0:02:41.4]} 16. Rac1 {[%clk 0:02:28]} 16... c5
{[%clk 0:02:37.6]} 17. Bxb7 {[%clk 0:02:21.9]} 17... cxd4 {[%clk 0:02:35.4]} 18.
exd4 {[%clk 0:02:18.3]} 18... Qxb7 {[%clk 0:02:35.3]} 19. Nxd6 {[%clk
0:02:17.8]} 19... Qd7 {[%clk 0:02:37.2]} 20. Nde4 {[%clk 0:02:05.6]} 20... Qxd4+
{[%clk 0:02:36.3]} 21. Qf2 {[%clk 0:02:06.4]} 21... Qxf2+ {[%clk 0:02:37.1]} 22.
Kxf2 {[%clk 0:02:06.6]} 22... Ng4+ {[%clk 0:02:33.7]} 23. Kg3 {[%clk 0:01:58.4]}
23... Ne3 {[%clk 0:02:33.9]} 24. Rfe1 {[%clk 0:01:51.7]} 24... Nc4 {[%clk
0:02:33.4]} 25. Re2 {[%clk 0:01:32.9]} 25... Rfd8 {[%clk 0:02:33]} 26. Rd1
{[%clk 0:01:33.5]} 26... Rxd1 {[%clk 0:02:28.9]} 27. Nxd1 {[%clk 0:01:34]} 27...
Rd8 {[%clk 0:02:30.8]} 28. Ne3 {[%clk 0:01:20.3]} 28... Rd3 {[%clk 0:02:21.3]}
29. Kf2 {[%clk 0:01:19.7]} 29... Nd6 {[%clk 0:02:11.7]} 30. Nxd6 {[%clk
0:01:17]} 30... Rxd6 {[%clk 0:02:12]} 31. Nc4 {[%clk 0:01:14.3]} 31... Rd4
{[%clk 0:02:11.8]} 32. Rd2 {[%clk 0:01:15.3]} 32... Rxf4+ {[%clk 0:01:59.3]} 33.
Ke3 {[%clk 0:01:15.8]} 33... g5 {[%clk 0:02:01.2]} 34. Rd4 {[%clk 0:00:50.6]}
34... Rf1 {[%clk 0:01:59.8]} 35. Rd7 {[%clk 0:00:49.8]} 35... Re1+ {[%clk
0:01:55.7]} 36. Kf2 {[%clk 0:00:47.4]} 36... Rc1 {[%clk 0:01:55.5]} 37. Ne5
{[%clk 0:00:36.6]} 37... f5 {[%clk 0:01:56.1]} 38. Rxa7 {[%clk 0:00:29.7]} 38...
Rc2+ {[%clk 0:01:56.4]} 39. Kg3 {[%clk 0:00:28.9]} 39... Rxb2 {[%clk 0:01:56.1]}
40. h3 {[%clk 0:00:24]} 40... Re2 {[%clk 0:01:49.3]} 41. Nf7 {[%clk 0:00:23.6]}
41... f4+ {[%clk 0:01:46.5]} 42. Kf3 {[%clk 0:00:22.6]} 42... Re3+ {[%clk
0:01:46.3]} 43. Kf2 {[%clk 0:00:23.9]} 43... Rg3 {[%clk 0:01:47]} 44. a4 {[%clk
0:00:20.9]} 44... h5 {[%clk 0:01:28.9]} 45. Rb7 {[%clk 0:00:13.9]} 45... g4
{[%clk 0:01:28.4]} 46. hxg4 {[%clk 0:00:14.5]} 46... hxg4 {[%clk 0:01:30.3]} 47.
Ng5 {[%clk 0:00:15.8]} 47... Ra3 {[%clk 0:01:28.6]} 48. Nxe6 {[%clk 0:00:16.7]}
48... Ra2+ {[%clk 0:01:29.6]} 49. Kg1 {[%clk 0:00:17.5]} 49... g3 {[%clk
0:01:27.4]} 50. Kf1 {[%clk 0:00:18.9]} 50... Rf2+ {[%clk 0:01:27.3]} 51. Kg1
{[%clk 0:00:13.9]} 51... Re2 {[%clk 0:01:26.3]} 52. Rb8+ {[%clk 0:00:14.9]}
52... Kf7 {[%clk 0:01:09.4]} 53. Ng5+ {[%clk 0:00:16.8]} 53... Kf6 {[%clk
0:01:09]} 54. Nf3 {[%clk 0:00:18.2]} 54... Ra2 {[%clk 0:01:08.3]} 55. Rxb6+
{[%clk 0:00:18.4]} 55... Kf5 {[%clk 0:01:08.6]} 56. Rb5+ {[%clk 0:00:19.6]}
56... Ke4 {[%clk 0:01:07.6]} 57. Re5+ {[%clk 0:00:20.7]} 57... Kd3 {[%clk
0:01:07.9]} 58. a5 {[%clk 0:00:22.1]} 58... Ra1+ {[%clk 0:01:07.3]} 59. Ne1+
{[%clk 0:00:19.4]} 59... Kd2 {[%clk 0:01:08.5]} 60. Kf1 {[%clk 0:00:20.1]} 60...
Kd1 {[%clk 0:00:54.2]} 61. Rd5+ {[%clk 0:00:19.8]} 61... Kc1 {[%clk 0:00:55.4]}
62. Ke2 {[%clk 0:00:21]} 62... Ra2+ {[%clk 0:00:56.5]} 63. Kf3 {[%clk
0:00:20.3]} 63... Rf2+ {[%clk 0:00:57.5]} 64. Kg4 {[%clk 0:00:21.4]} 64... Re2
{[%clk 0:00:56.8]} 65. Nd3+ {[%clk 0:00:22.4]} 65... Kd2 {[%clk 0:00:56.6]} 66.
Nxf4+ {[%clk 0:00:24.3]} 1-0

[Event "*** Titled Tuesday Blitz"]
[Site "Chess.com"]
[Date "2018.09.04"]
[Round "6"]
[White "XDPS"]
[Black "evgenysharapov"]
[Result "0-1"]
[WhiteElo "2585"]
[BlackElo "2444"]
[TimeControl "180+2"]
[EndTime "14:55:44 PDT"]
[Termination "evgenysharapov won by resignation"]

1. d4 {[%clk 0:03:01.9]} 1... d5 {[%clk 0:03:00]} 2. Nf3 {[%clk 0:02:58]} 2...
Nf6 {[%clk 0:02:59.8]} 3. Bf4 {[%clk 0:02:55.8]} 3... c5 {[%clk 0:02:59.9]} 4.
e3 {[%clk 0:02:56.9]} 4... cxd4 {[%clk 0:03:00.4]} 5. exd4 {[%clk 0:02:57.5]}
5... Nc6 {[%clk 0:03:01.1]} 6. Nbd2 {[%clk 0:02:57.4]} 6... Bg4 {[%clk
0:02:54.1]} 7. c3 {[%clk 0:02:55.5]} 7... e6 {[%clk 0:02:54.4]} 8. Qb3 {[%clk
0:02:55]} 8... Qc8 {[%clk 0:02:43.5]} 9. h3 {[%clk 0:02:45.5]} 9... Bxf3 {[%clk
0:02:41.1]} 10. Nxf3 {[%clk 0:02:45.9]} 10... Be7 {[%clk 0:02:41.9]} 11. Bd3
{[%clk 0:02:47.4]} 11... O-O {[%clk 0:02:42]} 12. O-O {[%clk 0:02:48.8]} 12...
Na5 {[%clk 0:02:30.9]} 13. Qc2 {[%clk 0:02:47.2]} 13... Nc4 {[%clk 0:02:30.7]}
14. Rfe1 {[%clk 0:02:45.6]} 14... a6 {[%clk 0:02:26.1]} 15. Ne5 {[%clk
0:02:43.7]} 15... h6 {[%clk 0:02:15.9]} 16. Re2 {[%clk 0:02:21.3]} 16... Nxe5
{[%clk 0:02:01.9]} 17. dxe5 {[%clk 0:02:21.7]} 17... Nd7 {[%clk 0:02:01.3]} 18.
Bh2 {[%clk 0:02:21.1]} 18... Nc5 {[%clk 0:01:59.8]} 19. Re3 {[%clk 0:02:21.3]}
19... Nxd3 {[%clk 0:02:00.2]} 20. Qxd3 {[%clk 0:02:22]} 20... Qc4 {[%clk
0:01:49]} 21. Qd1 {[%clk 0:01:02.7]} 21... Rfd8 {[%clk 0:01:43]} 22. Rd3 {[%clk
0:01:03.6]} 22... Rac8 {[%clk 0:01:32.8]} 23. Bg3 {[%clk 0:01:03.5]} 23... b5
{[%clk 0:01:28.4]} 24. a3 {[%clk 0:01:03.6]} 24... d4 {[%clk 0:01:11.9]} 25.
cxd4 {[%clk 0:00:59.2]} 25... Qc2 {[%clk 0:01:11.6]} 26. Rb1 {[%clk 0:00:59.7]}
26... Qxd1+ {[%clk 0:01:11.5]} 27. Rbxd1 {[%clk 0:00:53.7]} 27... Rc2 {[%clk
0:01:08.4]} 28. b4 {[%clk 0:00:52.8]} 28... Rd5 {[%clk 0:00:59.2]} 29. Bf4
{[%clk 0:00:53.4]} 29... Kf8 {[%clk 0:00:57.2]} 30. Kf1 {[%clk 0:00:51.2]} 30...
Ke8 {[%clk 0:00:57.1]} 31. R1d2 {[%clk 0:00:52.3]} 31... Rc4 {[%clk 0:00:52.3]}
32. Be3 {[%clk 0:00:51.3]} 32... Kd7 {[%clk 0:00:50.6]} 33. Ke2 {[%clk
0:00:51.8]} 33... Kc6 {[%clk 0:00:50.5]} 34. Ra2 {[%clk 0:00:44.2]} 34... Rd7
{[%clk 0:00:49.8]} 35. Kd2 {[%clk 0:00:43.7]} 35... Kd5 {[%clk 0:00:49.9]} 36.
Rc3 {[%clk 0:00:43.1]} 36... Rxc3 {[%clk 0:00:46.7]} 37. Kxc3 {[%clk 0:00:43.3]}
37... Rc7+ {[%clk 0:00:46.9]} 38. Kd3 {[%clk 0:00:44.4]} 38... Rc4 {[%clk
0:00:42.9]} 39. g4 {[%clk 0:00:43.1]} 39... Bd8 {[%clk 0:00:40.7]} 40. Rd2
{[%clk 0:00:31.5]} 40... Bb6 {[%clk 0:00:38.3]} 41. Ke2 {[%clk 0:00:32.5]} 41...
Bxd4 {[%clk 0:00:20.6]} 42. Bf4 {[%clk 0:00:27]} 42... Kc6 {[%clk 0:00:18.7]}
43. Rd3 {[%clk 0:00:25.2]} 43... Kc7 {[%clk 0:00:18.9]} 44. Bg3 {[%clk
0:00:25.1]} 44... Rc2+ {[%clk 0:00:19.2]} 45. Kf3 {[%clk 0:00:25.6]} 45... Rc3
{[%clk 0:00:19.8]} 46. Ke4 {[%clk 0:00:21.1]} 46... Rxd3 {[%clk 0:00:20.3]} 47.
Kxd3 {[%clk 0:00:23]} 47... Bb2 {[%clk 0:00:21.1]} 48. Bf4 {[%clk 0:00:18.9]}
48... Kc6 {[%clk 0:00:19]} 49. Kc2 {[%clk 0:00:19.1]} 49... Bd4 {[%clk
0:00:19.4]} 50. Kd3 {[%clk 0:00:18.6]} 50... Bxf2 {[%clk 0:00:19.2]} 51. Ke4
{[%clk 0:00:19]} 51... Bb6 {[%clk 0:00:19.1]} 52. h4 {[%clk 0:00:20]} 52... a5
{[%clk 0:00:19.6]} 53. Bd2 {[%clk 0:00:20.6]} 53... a4 {[%clk 0:00:20.1]} 54.
Bc1 {[%clk 0:00:20.3]} 54... Bd8 {[%clk 0:00:20.5]} 55. h5 {[%clk 0:00:21.5]}
55... f6 {[%clk 0:00:20.2]} 56. exf6 {[%clk 0:00:22.4]} 56... Bxf6 {[%clk
0:00:20.5]} 57. Kd3 {[%clk 0:00:20.1]} 57... Kd5 {[%clk 0:00:20.8]} 58. Be3
{[%clk 0:00:20.4]} 58... e5 {[%clk 0:00:21.4]} 59. Bc1 {[%clk 0:00:20.1]} 59...
e4+ {[%clk 0:00:22.2]} 60. Ke2 {[%clk 0:00:21.3]} 60... Kc4 {[%clk 0:00:22.8]}
0-1

[Event "*** Titled Tuesday Blitz"]
[Site "Chess.com"]
[Date "2018.09.04"]
[Round "6"]
[White "martinmartinez95"]
[Black "NateSolon"]
[Result "1-0"]
[WhiteElo "2440"]
[BlackElo "2500"]
[TimeControl "180+2"]
[EndTime "14:56:19 PDT"]
[Termination "martinmartinez95 won by checkmate"]

1. e4 {[%clk 0:02:14.9]} 1... e5 {[%clk 0:02:59.2]} 2. Nf3 {[%clk 0:02:15.1]}
2... d6 {[%clk 0:03:00.3]} 3. d4 {[%clk 0:02:15.2]} 3... exd4 {[%clk 0:03:02.2]}
4. Nxd4 {[%clk 0:02:16.5]} 4... Nf6 {[%clk 0:03:03.4]} 5. Nc3 {[%clk 0:02:17.7]}
5... Be7 {[%clk 0:03:04.8]} 6. Be2 {[%clk 0:02:16.7]} 6... O-O {[%clk
0:03:04.8]} 7. O-O {[%clk 0:02:16.5]} 7... Re8 {[%clk 0:03:05.7]} 8. Be3 {[%clk
0:02:13]} 8... Bf8 {[%clk 0:03:05.9]} 9. Qd3 {[%clk 0:02:03.7]} 9... Nbd7 {[%clk
0:03:02.9]} 10. Nb3 {[%clk 0:01:59.4]} 10... Ne5 {[%clk 0:02:54.2]} 11. Qd2
{[%clk 0:01:57.1]} 11... Neg4 {[%clk 0:02:54.9]} 12. Bg5 {[%clk 0:01:48.7]}
12... h6 {[%clk 0:02:55.1]} 13. Bxg4 {[%clk 0:01:43.3]} 13... hxg5 {[%clk
0:02:37.9]} 14. Bxc8 {[%clk 0:01:41.4]} 14... Rxc8 {[%clk 0:02:27.6]} 15. Qxg5
{[%clk 0:01:29]} 15... Nxe4 {[%clk 0:02:28.1]} 16. Nxe4 {[%clk 0:01:24.9]} 16...
Rxe4 {[%clk 0:02:28.5]} 17. Qd5 {[%clk 0:01:22.3]} 17... Re2 {[%clk 0:02:20.8]}
18. Nd4 {[%clk 0:01:17]} 18... c6 {[%clk 0:02:12.9]} 19. Qb3 {[%clk 0:01:14.9]}
19... Rd2 {[%clk 0:01:59.9]} 20. Nf3 {[%clk 0:01:05.1]} 20... Re2 {[%clk
0:02:00.9]} 21. Rfe1 {[%clk 0:00:56.5]} 21... Rxe1+ {[%clk 0:01:56.8]} 22. Rxe1
{[%clk 0:00:57.4]} 22... Qb6 {[%clk 0:01:51]} 23. Qxb6 {[%clk 0:00:50.3]} 23...
axb6 {[%clk 0:01:52.9]} 24. a4 {[%clk 0:00:48.5]} 24... f6 {[%clk 0:01:42.8]}
25. b3 {[%clk 0:00:47]} 25... Kf7 {[%clk 0:01:43.4]} 26. g4 {[%clk 0:00:43.2]}
26... d5 {[%clk 0:01:39.4]} 27. h4 {[%clk 0:00:37.7]} 27... Re8 {[%clk
0:01:33.3]} 28. Rxe8 {[%clk 0:00:36]} 28... Kxe8 {[%clk 0:01:35.2]} 29. h5
{[%clk 0:00:30]} 29... Bd6 {[%clk 0:01:21.2]} 30. Kg2 {[%clk 0:00:24]} 30... Kf7
{[%clk 0:01:19.2]} 31. Nh4 {[%clk 0:00:23.2]} 31... Bf4 {[%clk 0:01:03.7]} 32.
Ng6 {[%clk 0:00:22.2]} 32... Bd6 {[%clk 0:01:00.2]} 33. f4 {[%clk 0:00:20.3]}
33... Ke6 {[%clk 0:00:49.9]} 34. Kf3 {[%clk 0:00:20.9]} 34... Kf7 {[%clk
0:00:46.1]} 35. f5 {[%clk 0:00:20.9]} 35... Ke8 {[%clk 0:00:37.6]} 36. Ke2
{[%clk 0:00:21.3]} 36... Kd7 {[%clk 0:00:38.4]} 37. Kd3 {[%clk 0:00:22.5]} 37...
c5 {[%clk 0:00:38.5]} 38. c4 {[%clk 0:00:21.7]} 38... d4 {[%clk 0:00:23.6]} 39.
Nh4 {[%clk 0:00:21.7]} 39... Kc6 {[%clk 0:00:22.3]} 40. Ke4 {[%clk 0:00:21.7]}
40... Kd7 {[%clk 0:00:22.6]} 41. Nf3 {[%clk 0:00:22.1]} 41... Kc6 {[%clk
0:00:23.4]} 42. Ne1 {[%clk 0:00:16.3]} 42... Bg3 {[%clk 0:00:23.9]} 43. Nd3
{[%clk 0:00:16.5]} 43... Kd6 {[%clk 0:00:25.2]} 44. Kf3 {[%clk 0:00:15.9]} 44...
Bh4 {[%clk 0:00:24.9]} 45. Kf4 {[%clk 0:00:14.2]} 45... Bg5+ {[%clk 0:00:25.8]}
46. Ke4 {[%clk 0:00:15.1]} 46... Bh6 {[%clk 0:00:26.4]} 47. Ne1 {[%clk
0:00:15.9]} 47... Bg5 {[%clk 0:00:26]} 48. Nf3 {[%clk 0:00:16.9]} 48... Bc1
{[%clk 0:00:26.9]} 49. Nh4 {[%clk 0:00:17.9]} 49... Bg5 {[%clk 0:00:26.5]} 50.
Ng6 {[%clk 0:00:14.1]} 50... Bc1 {[%clk 0:00:25.5]} 51. Nf8 {[%clk 0:00:14.3]}
51... Bd2 {[%clk 0:00:23.6]} 52. Ne6 {[%clk 0:00:13.6]} 52... Bh6 {[%clk
0:00:24.5]} 53. Kd3 {[%clk 0:00:12.9]} 53... Kc6 {[%clk 0:00:21.6]} 54. Ke4
{[%clk 0:00:13.5]} 54... Kd6 {[%clk 0:00:22.9]} 55. Nd8 {[%clk 0:00:13.9]} 55...
Kc7 {[%clk 0:00:23.2]} 56. Nf7 {[%clk 0:00:12.5]} 56... Bc1 {[%clk 0:00:22.6]}
57. Nh8 {[%clk 0:00:13.1]} 57... Bh6 {[%clk 0:00:21.9]} 58. Ng6 {[%clk 0:00:14]}
58... Kd6 {[%clk 0:00:21.3]} 59. Nh4 {[%clk 0:00:14.9]} 59... Bg5 {[%clk
0:00:21.1]} 60. Nf3 {[%clk 0:00:15]} 60... Bc1 {[%clk 0:00:22.1]} 61. g5 {[%clk
0:00:15.7]} 61... fxg5 {[%clk 0:00:09.5]} 62. f6 {[%clk 0:00:15.1]} 62... Ke6
{[%clk 0:00:07.6]} 63. fxg7 {[%clk 0:00:15.3]} 63... Kf7 {[%clk 0:00:09.1]} 64.
h6 {[%clk 0:00:16.4]} 64... Kg8 {[%clk 0:00:09]} 65. Kf5 {[%clk 0:00:15.3]}
65... g4 {[%clk 0:00:10.1]} 66. Ng5 {[%clk 0:00:12.9]} 66... g3 {[%clk
0:00:08.2]} 67. Kg6 {[%clk 0:00:12.6]} 67... Bxg5 {[%clk 0:00:08.5]} 68. h7#
{[%clk 0:00:13.3]} 1-0

[Event "*** Titled Tuesday Blitz"]
[Site "Chess.com"]
[Date "2018.09.04"]
[Round "6"]
[White "BlackBoarder"]
[Black "Thjop"]
[Result "1/2-1/2"]
[WhiteElo "2443"]
[BlackElo "2537"]
[TimeControl "180+2"]
[EndTime "14:56:54 PDT"]
[Termination "Game drawn - insufficient material"]

1. e4 {[%clk 0:02:59.4]} 1... e6 {[%clk 0:03:00.9]} 2. d4 {[%clk 0:02:59.9]}
2... d5 {[%clk 0:03:01.8]} 3. Bd3 {[%clk 0:03:00.6]} 3... dxe4 {[%clk
0:02:52.1]} 4. Bxe4 {[%clk 0:03:02.5]} 4... Nf6 {[%clk 0:02:52.7]} 5. Bf3 {[%clk
0:03:03.3]} 5... c5 {[%clk 0:02:53.9]} 6. Ne2 {[%clk 0:03:02.7]} 6... Nc6 {[%clk
0:02:54.6]} 7. Be3 {[%clk 0:03:03.3]} 7... e5 {[%clk 0:02:54.1]} 8. Bxc6+ {[%clk
0:02:28.3]} 8... bxc6 {[%clk 0:02:52.9]} 9. dxe5 {[%clk 0:02:19.1]} 9... Qxd1+
{[%clk 0:02:51.4]} 10. Kxd1 {[%clk 0:02:21]} 10... Ng4 {[%clk 0:02:52.1]} 11.
Nbc3 {[%clk 0:01:59.7]} 11... Nxe3+ {[%clk 0:02:52.2]} 12. fxe3 {[%clk
0:02:00.6]} 12... Be7 {[%clk 0:02:08.1]} 13. Ke1 {[%clk 0:01:39.7]} 13... Bf5
{[%clk 0:02:03]} 14. e4 {[%clk 0:01:38.5]} 14... Be6 {[%clk 0:01:54.8]} 15. Rd1
{[%clk 0:01:33.7]} 15... h5 {[%clk 0:01:30.6]} 16. Rf1 {[%clk 0:01:24.9]} 16...
h4 {[%clk 0:01:28.9]} 17. Nf4 {[%clk 0:01:18.9]} 17... Rb8 {[%clk 0:01:27.4]}
18. Nxe6 {[%clk 0:01:12.6]} 18... fxe6 {[%clk 0:01:27.5]} 19. b3 {[%clk
0:01:07.7]} 19... Rh5 {[%clk 0:01:27.3]} 20. Ke2 {[%clk 0:01:00.3]} 20... Rxe5
{[%clk 0:01:25.7]} 21. Rf4 {[%clk 0:00:52.6]} 21... Bf6 {[%clk 0:01:18.6]} 22.
Na4 {[%clk 0:00:48.4]} 22... Rb4 {[%clk 0:01:15.4]} 23. Kf3 {[%clk 0:00:45.5]}
23... Be7 {[%clk 0:01:02.5]} 24. Nb2 {[%clk 0:00:41]} 24... Rd4 {[%clk
0:00:37.7]} 25. Rxd4 {[%clk 0:00:39.2]} 25... cxd4 {[%clk 0:00:39.6]} 26. Nc4
{[%clk 0:00:39.4]} 26... Rh5 {[%clk 0:00:38.1]} 27. h3 {[%clk 0:00:34.4]} 27...
g5 {[%clk 0:00:37.1]} 28. Rg4 {[%clk 0:00:34.4]} 28... Rh8 {[%clk 0:00:37.8]}
29. Ke2 {[%clk 0:00:30.7]} 29... Rf8 {[%clk 0:00:37.1]} 30. Ne5 {[%clk
0:00:30.4]} 30... c5 {[%clk 0:00:36.1]} 31. Nf3 {[%clk 0:00:31.6]} 31... Rf4
{[%clk 0:00:24.7]} 32. Rxf4 {[%clk 0:00:32.5]} 32... gxf4 {[%clk 0:00:26.6]} 33.
Kd3 {[%clk 0:00:32.6]} 33... Kd7 {[%clk 0:00:27.5]} 34. Kc4 {[%clk 0:00:33]}
34... Kc6 {[%clk 0:00:28.6]} 35. Ne5+ {[%clk 0:00:32.5]} 35... Kd6 {[%clk
0:00:29.7]} 36. Nd3 {[%clk 0:00:21.7]} 36... Bf8 {[%clk 0:00:20.4]} 37. Nxf4
{[%clk 0:00:20.6]} 37... Be7 {[%clk 0:00:17.4]} 38. Nd3 {[%clk 0:00:20.9]} 38...
Bg5 {[%clk 0:00:18.5]} 39. Nxc5 {[%clk 0:00:20.3]} 39... Ke5 {[%clk 0:00:19.8]}
40. a4 {[%clk 0:00:19.8]} 40... Bd8 {[%clk 0:00:19.6]} 41. Kd3 {[%clk
0:00:17.6]} 41... a5 {[%clk 0:00:20]} 42. Nd7+ {[%clk 0:00:16.1]} 42... Kf4
{[%clk 0:00:19.2]} 43. Ke2 {[%clk 0:00:16]} 43... Kg3 {[%clk 0:00:20.1]} 44. Kf1
{[%clk 0:00:16.9]} 44... Kf4 {[%clk 0:00:21.5]} 45. Nc5 {[%clk 0:00:14.6]} 45...
Be7 {[%clk 0:00:19.2]} 46. Nd3+ {[%clk 0:00:14.4]} 46... Kxe4 {[%clk 0:00:20.1]}
47. Ke2 {[%clk 0:00:15.8]} 47... e5 {[%clk 0:00:21.2]} 48. Nf2+ {[%clk 0:00:16]}
48... Kf4 {[%clk 0:00:22.6]} 49. Nd3+ {[%clk 0:00:16.5]} 49... Kg3 {[%clk
0:00:23]} 50. Kf1 {[%clk 0:00:08.9]} 50... e4 {[%clk 0:00:23.6]} 51. Nf2 {[%clk
0:00:08.8]} 51... Kf4 {[%clk 0:00:24.7]} 52. Ke2 {[%clk 0:00:09.1]} 52... Bb4
{[%clk 0:00:22.3]} 53. Ng4 {[%clk 0:00:05.3]} 53... Be7 {[%clk 0:00:22.4]} 54.
Nh6 {[%clk 0:00:04.9]} 54... Bf6 {[%clk 0:00:19.6]} 55. Ng4 {[%clk 0:00:05.6]}
55... Bg7 {[%clk 0:00:20.9]} 56. Kf2 {[%clk 0:00:04.4]} 56... Bf8 {[%clk
0:00:18.9]} 57. Nf6 {[%clk 0:00:04.1]} 57... Bc5 {[%clk 0:00:17.8]} 58. Nd5+
{[%clk 0:00:05]} 58... Ke5 {[%clk 0:00:18.9]} 59. Nc7 {[%clk 0:00:05.4]} 59...
d3+ {[%clk 0:00:19.7]} 60. Ke1 {[%clk 0:00:05]} 60... dxc2 {[%clk 0:00:20.8]}
61. Kd2 {[%clk 0:00:06.4]} 61... Kf4 {[%clk 0:00:21.7]} 62. Kxc2 {[%clk
0:00:05.7]} 62... Kg3 {[%clk 0:00:22.9]} 63. Ne6 {[%clk 0:00:06.5]} 63... Bd6
{[%clk 0:00:21.6]} 64. Ng5 {[%clk 0:00:05.6]} 64... Kxg2 {[%clk 0:00:22.9]} 65.
Nxe4 {[%clk 0:00:06.2]} 65... Bb4 {[%clk 0:00:24]} 66. Ng5 {[%clk 0:00:06.8]}
66... Kg3 {[%clk 0:00:23.8]} 67. Kd3 {[%clk 0:00:06.8]} 67... Be7 {[%clk
0:00:24.5]} 68. Ne4+ {[%clk 0:00:03.9]} 68... Kxh3 {[%clk 0:00:25]} 69. Ke2
{[%clk 0:00:04.2]} 69... Kg4 {[%clk 0:00:24.6]} 70. Kf2 {[%clk 0:00:02.9]} 70...
Kf4 {[%clk 0:00:25.2]} 71. Nd2 {[%clk 0:00:04.3]} 71... Ke5 {[%clk 0:00:20.7]}
72. Nc4+ {[%clk 0:00:04.7]} 72... Kd4 {[%clk 0:00:21.4]} 73. Nxa5 {[%clk
0:00:04.9]} 73... Kc3 {[%clk 0:00:22.7]} 74. Kg2 {[%clk 0:00:05.2]} 74... Bd8
{[%clk 0:00:21.2]} 75. Nc6 {[%clk 0:00:05.7]} 75... Kxb3 {[%clk 0:00:20.3]} 76.
Nxd8 {[%clk 0:00:04.3]} 76... Kxa4 {[%clk 0:00:21.8]} 77. Kh3 {[%clk 0:00:05.6]}
77... Kb5 {[%clk 0:00:19.2]} 78. Ne6 {[%clk 0:00:07.5]} 78... Kc6 {[%clk
0:00:20.1]} 79. Ng5 {[%clk 0:00:09.4]} 79... Kd6 {[%clk 0:00:21.5]} 80. Nf3
{[%clk 0:00:11.3]} 80... Ke6 {[%clk 0:00:22.6]} 81. Nh2 {[%clk 0:00:13.2]} 81...
Kf5 {[%clk 0:00:24.2]} 82. Kxh4 {[%clk 0:00:14.7]} 1/2-1/2